{"text_format":"1","workbook":"xlsx","n_sheets":49,"sheets":["Инструкция","Лог обновления","Титульный","Территории","ВД и СКИ","Форма 1.0.1 | Форма 4.7","Форма 4.7","Форма 1.0.2","Сведения об изменении","Комментарии","Проверка","modProv","modReestr","AllSheetsInThisWorkbook","modCheckCyan","modInfo","TEHSHEET","modList11","et_union_hor","et_union_vert","modList00","modList02","modList03","modList04","modList07","modList09","modHTTP","modfrmRegion","MR_LIST","REESTR_VT","REESTR_VED","modfrmReestrObj","DataOrg","modfrmReestr","modUpdTemplMain","REESTR_ORG","modClassifierValidate","modHyp","modfrmDateChoose","modComm","modThisWorkbook","REESTR_MO","REESTR_MO_FILTER","modfrmReestrMR","modServiceModule","modfrmCheckUpdates","REESTR_DS","REESTR_CHS","REESTR_LINK"],"not_rendered":{"charts":0,"images":23,"macros":1,"external_links":0,"defined_names":168,"comments":2,"pivot_tables":0},"unopened":[],"bounds":{"document_bytes":16777216,"sheet_cells":100000,"rows_first":2000,"rows_last":500,"rows_between":2000,"halvings":0,"cell_chars":16384,"cell_head_chars":4096},"cells_cut":0,"cells_raw":0,"read":"whole","date_system":"1900"}

{"sheet":"Инструкция","index":0,"n_rows":83,"n_cols":27,"rows_kept":83,"cut":false,"hidden":false,"merged":[[34,4,38,23],[22,15,22,22],[21,5,21,12],[1,1,1,6],[2,1,2,2],[4,1,4,24],[6,4,18,23],[20,5,20,12],[20,15,20,23],[21,15,21,23],[39,4,39,23],[40,4,44,23],[45,4,56,23],[80,5,80,18],[58,4,58,6],[58,7,58,23],[59,4,59,6],[71,5,71,23],[57,4,57,20],[70,4,70,19],[82,5,82,23],[60,7,60,23],[78,4,78,23],[72,5,72,23],[73,5,73,23],[74,4,74,23],[75,4,75,23],[76,4,76,23],[77,4,77,23],[69,4,69,19]]}
[null,null,null,null,null,null,null,null,null,null,null,null,null,null,null,null,null,null,null,null,null,null,null,null,null,null," (требуется обновление)"]
[null,{"$f":"\"Код отчёта: \" & GetCode()","v":"Код отчёта: FAS.JKH.OPEN.INFO.TERMS.WARM"}]
[null,{"$f":"\"Версия \" & GetVersion()","v":"Версия 1.0.2"}]
[]
[null,{"$f":"Титульный!E5","v":"Информация об условиях, на которых осуществляется поставка товаров (оказание услуг)"}]
[]
[null,null,null,null,"• На рабочем месте должен быть установлен MS Office 2007 SP3, 2010, 2013, 2016 с полной версией MS Excel\n\n• Макросы во время работы должны быть включены (!)\n\n• Для корректной работы отчёта требуется выбрать низкий уровень безопасности\n(В меню MS Excel 2007/2010/2013/2016: Параметры Excel | Центр управления безопасностью | Параметры центра управления безопасностью | Параметры макросов | Включить все макросы | ОК)\n\n• Если Вы работаете в табличном процессоре MS Excel 2007 и выше, то можете использовать для работы формат XLSB (Двоичная книга Excel). При работе в формате XLSB заметно быстрее происходит сохранение файла, а также уменьшается размер по сравнению с форматами XLS и XLSM\n\n• Не рекомендуется снимать защиту с листов и каким-либо образом модифицировать защищаемые формулы и расчётные поля, в противном случае, отчёт будет отклонён системой\n\n• При сохранении не следует выбирать формат XLSX (Книга Excel), так как в указанном формате макросы, необходимые для работы отчёта, безвозвратно удаляются"]
[]
[]
[]
[]
[]
[]
[]
[]
[]
[]
[]
[]
[]
[null,null,null,null,"A"," - не обязательные для заполнения",null,null,null,null,null,null,null,null,"A"," - с формулами и константами"]
[null,null,null,null,"A"," - обязательные для заполнения",null,null,null,null,null,null,null,null,"A"," - с выбором значений по двойному клику"]
[]
[]
[]
[]
[]
[]
[]
[]
[]
[]
[]
[]
[null,null,null,null,"Если в предложенном Вам списке необходимая организация, МР/МО отсутствуют, обновите реестры с помощью кнопок\n\nВ результате синхронизации с базой данных список организаций (МР/МО) будет заменён актуальным (механизм синхронизации требует подключения к сети Интернет и основан на использовании протокола HTTPS (TCP порт 443))\n\nЕсли после обновления Вам не удалось найти необходимую организацию в списке, обратитесь к ответственному за поддержание реестра Вашего региона."]
[]
[]
[]
[]
[]
[]
[]
[]
[]
[]
[null,null,null,null,"• При сохранении шаблона осуществляется проверка корректности данных, в том числе на наличие значений в ячейках, обязательных для заполнения\n\n• Если какая-то ячейка не удовлетворяет условию проверки, на лист «Проверка» добавляется гиперссылка на данную ячейку и указывается причина ошибки\n\n• В колонке «Статус» для каждого сообщения возможны 2 значения: ошибка и предупреждение\n\n• При наличии сообщений со статусом «Ошибка» шаблон будет отклонён системой и не будет загружен в хранилище данных, сообщения со статусом «Предупреждение» носят информационный характер, и такой шаблон будет принят системой"]
[]
[]
[]
[]
[]
[]
[]
[]
[]
[]
[]
[null,null,null,null,"Обратиться за помощью в службу технической поддержки"]
[]
[]
[]
[]
[]
[]
[]
[]
[]
[]
[]
[null,null,null,null,"Инструкция по загрузке сопроводительных материалов"]
[null,null,null,null,"Инструкция по работе с отчетной формой"]
[]
[]
[]
[]
[]
[]
[]
[null,null,null,null,"При наличии подключения к Интернет, можно автоматически проверять наличие доступных обновлений. Выберите способ оповещения о наличии обновлений для отчёта:"]
[]
[null,null,null,null,null,"проверять доступные обновления (рекомендуется)",null,null,null,null,null,null,null,null,null,null,null,null,null,null,null,null,null,null,null,null,"y"]
[]
[null,null,null,null,null,"никогда не проверять наличие обновлений (не рекомендуется)"]

{"sheet":"Лог обновления","index":1,"n_rows":18,"n_cols":3,"rows_kept":18,"cut":false,"hidden":true,"merged":[]}
["Дата/Время","Сообщение","Статус"]
["2023-02-01T01:44:01","Проверка доступных обновлений...","Информация"]
["2023-02-01T01:44:03","Доступно обновление до версии 1.0.2","Информация"]
["2023-02-01T01:44:04","Описание изменений: Версия 1.0.2\n1. Расширен список лет для заполнения.\n\nВерсия 1.0.1\n1. Убрано примечание для листа 'Форма 4.7'.","Информация"]
["2023-02-01T01:44:04","Размер файла обновления: 283648 байт","Информация"]
["2023-02-01T01:44:06","Подготовка к обновлению...","Информация"]
["2023-02-01T01:44:14","Сохранение файла резервной копии: C:\\_myWork\\FBU\\jira\\FASTRI\\update\\TERMS.WARM\\123.BKP.xlsb","Информация"]
["2023-02-01T01:44:16","Резервная копия создана: C:\\_myWork\\FBU\\jira\\FASTRI\\update\\TERMS.WARM\\123.BKP.xlsb","Информация"]
["2023-02-01T01:44:16","Создание книги для установки обновлений...","Информация"]
["2023-02-01T01:44:22","Файл обновления загружен: C:\\_myWork\\FBU\\jira\\FASTRI\\update\\TERMS.WARM\\UPDATE.FAS.JKH.OPEN.INFO.TERMS.WARM.TO.1.0.2.45.xls","Информация"]
["2023-02-01T01:44:27","Обновление завершилось удачно! Шаблон FAS.JKH.OPEN.INFO.TERMS.WARM(v1.0.1).xlsb сохранен под именем 'FAS.JKH.OPEN.INFO.TERMS.WARM(v1.0.2).xlsb'","Информация"]
["2023-02-20T09:11:44","Проверка доступных обновлений...","Информация"]
["2023-02-20T09:15:50","Проверка доступных обновлений...","Информация"]
["2023-02-20T09:15:52","Нет доступных обновлений для отчёта с кодом FAS.JKH.OPEN.INFO.TERMS.WARM!","Информация"]
["2023-02-20T09:16:22","Проверка доступных обновлений...","Информация"]
["2023-02-20T09:16:23","Нет доступных обновлений для отчёта с кодом FAS.JKH.OPEN.INFO.TERMS.WARM!","Информация"]
["2023-02-20T09:19:27","Проверка доступных обновлений...","Информация"]
["2023-02-20T09:19:28","Нет доступных обновлений для отчёта с кодом FAS.JKH.OPEN.INFO.TERMS.WARM!","Информация"]

{"sheet":"Титульный","index":2,"n_rows":47,"n_cols":6,"rows_kept":47,"cut":false,"hidden":false,"merged":[[4,4,4,5],[46,4,46,5]]}
[null,null,null,null,null,26506486]
[]
[]
[null,null,null,null,null,{"$f":"version","v":"Версия 1.0.2"}]
[null,null,null,null,"Информация об условиях, на которых осуществляется поставка товаров (оказание услуг)"]
[]
[null,null,null,null,"Субъект РФ","Саратовская область"]
[]
[null,null,null,null,"Публикация2","На сайте регулирующего органа"]
[]
[null,null,null,null,"Отсутствует Интернет в границах территории МО, где организация осуществляет регулируемые виды деятельности","нет"]
[]
[null,null,null,null,"Тип отчета","первичное раскрытие информации"]
[null,null,null,null,"Дата внесения изменений в информацию, подлежащую раскрытию","20.02.2023"]
[]
[null,null,null,null,"Применяется дифференциация тарифа по централизованным системам горячего водоснабжения?"]
[null,null,null,null,"Информация по скольким централизованным системам горячего водоснабжения будет заполнена в шаблоне?"]
[]
[]
[null,null,2022,null,"Отчётный период (год)",2022]
[]
[]
[null,null,null,null,"Является ли данное юридическое лицо подразделением (филиалом) другой организации","да"]
[]
[]
[null,null,null,null,"Наименование организации","Филиал АО Концерн Росэнергоатом Балаковская атомная станция"]
[null,null,null,null,"Наименование филиала","Балаковская атомная станция"]
[null,null,null,null,"ИНН","7721632827"]
[null,null,null,null,"КПП","643943001"]
[null,null,null,null,"Вид деятельности"]
[]
[null,null,null,null,"Тип теплоснабжающей организации","Регулируемая организация"]
[]
[null,null,null,null,"Организация осуществляет подключение (технологическое присоединение) к системе теплоснабжения","нет"]
[]
[null,null,null,null,"Почтовый адрес регулируемой организации","г. Балаково, Саратовская область, 413801"]
[null,null,null,null,"Фамилия, имя, отчество руководителя","Бессонов Валерий Николаевич"]
[]
[null,null,null,null,null,"Ответственный за составление формы"]
[null,null,null,null,"Фамилия, имя, отчество","Мурнина Наталья Викторовна"]
[null,null,null,null,"Должность","Начальник планово-экономического отдела"]
[null,null,null,null,"(код) номер телефона","8(8453)49-93-55"]
[null,null,null,null,"e-mail","murninanv@balaes.ru"]
[]
[]
[]
[null,null,null,null,"Информация об условиях, на которых осуществляется поставка товаров (оказание услуг) в ценовых зонах теплоснабжения по регулируемым ценам (тарифам) в сфере теплоснабжения, раскрывается единой теплоснабжающей организацией, теплоснабжающей организацией и теплосетевой организацией в ценовых зонах теплоснабжения не позднее 30 календарных дней со дня принятия соответствующего решения об установлении цен (тарифов) на очередной расчетный период регулирования (шаблон FAS.JKH.OPEN.INFO.PRICE.WARM)"]

{"sheet":"Территории","index":3,"n_rows":17,"n_cols":18,"rows_kept":17,"cut":false,"hidden":false,"merged":[[12,7,14,7],[11,2,15,2],[11,3,15,3],[11,4,15,4],[12,5,14,5],[12,6,14,6],[8,5,8,6],[8,8,8,9],[9,5,9,6],[9,8,9,9],[3,3,3,7],[5,3,5,4],[5,5,5,6],[7,3,7,4],[7,5,7,7],[7,8,7,11],[6,4,6,11]]}
[null,null,null,null,null,null,null,null,null,null,"МО","ОКТМО","МР"]
[]
[]
[null,null,null,"Перечень муниципальных районов и муниципальных образований (территорий оказания услуг)"]
[]
[null,null,null,null,null,"да"]
[]
[null,null,null,"Территория оказания услуг",null,"Муниципальный район",null,null,"Муниципальное образование"]
[null,null,null,"№ п/п","Наименование","№ п/п",null,"Наименование","№ п/п",null,"Наименование","ОКТМО"]
[null,null,null,"1","2","3",null,"4","5",null,"6","7"]
[null,null,null,0,null,"",null,null,"",null,null,null,"размерженный МР",null,null,"флаг используемости территории на листе Перечень тарифов","копия территорий","МР (ОКТМО)"]
[null,"auto",null,1,"Балаковский муниципальный район, Натальинское (63607460);","",0,null,"","0",null,null,{"$f":"mergeValue(H12)","v":0},null,null,{"$f":"IF(ISERROR(MATCH(MID(Q12,1,250),MID(note_ter,1,250),0)),\"n\",\"y\")","v":"n"},"Балаковский муниципальный район, Натальинское (63607460);",{"$f":"K12&\"(\"&L12&\")\"","v":"()"}]
[null,"auto",null,null,null,"",1,"Балаковский муниципальный район","","0",null,null,{"$f":"mergeValue(H13)","v":"Балаковский муниципальный район"},null,null,null,null,{"$f":"K13&\"(\"&L13&\")\"","v":"()"}]
[null,"auto",null,null,null,null,null,null,"",1,"Натальинское","63607460",{"$f":"mergeValue(H14)","v":"Балаковский муниципальный район"},null,null,null,null,{"$f":"K14&\" (\"&L14&\")\"","v":"Натальинское (63607460)"}]
[null,null,null,null,null,null,null,null,"",null,""]
[null,null,null,null,null,"","","",""]
[null,"man",null,null,"","",null,null,"",null,null,null,null,null,null,null,"Добавить территорию оказания услуг"]

{"sheet":"ВД и СКИ","index":4,"n_rows":26,"n_cols":26,"rows_kept":26,"cut":false,"hidden":false,"merged":[[21,9,22,9],[17,9,17,12],[19,6,19,7],[19,10,19,11],[18,10,18,11],[18,6,18,7],[24,2,25,2],[11,1,11,3],[21,4,23,4],[21,5,23,5],[21,3,23,3],[17,5,17,8],[21,6,22,6],[21,7,22,7],[21,8,22,8],[17,0,18,0],[17,3,17,4],[3,3,3,8],[4,3,4,8],[7,4,7,5],[8,1,8,3],[5,0,6,5],[7,1,7,3],[8,4,8,5],[9,1,9,3],[9,4,9,5],[13,1,13,3],[10,4,10,5],[10,1,10,3]]}
[]
[]
[]
[null,null,null,{"$f":"Титульный!E5","v":"Информация об условиях, на которых осуществляется поставка товаров (оказание услуг)"}]
[null,null,null,{"$f":"IF(org=0,\"Не определено\",org)","v":"Филиал АО Концерн Росэнергоатом Балаковская атомная станция"}]
[]
[]
[]
[]
[]
[]
[]
[]
[]
[]
[]
[]
[null,null,null,"Вид деятельности",null,"Территория оказания услуг",null,null,null,"Централизованные системы коммунальной инфраструктуры"]
[null,null,null,"№ п/п","Наименование","да/нет","№ п/п",null,"Наименование","да/нет","№ п/п",null,"Наименование"]
[null,null,null,"1","2","3","4",null,"5","6","7",null,"8"]
[]
[null,null,null,"1","Производство тепловой энергии. Комбинированная выработка с уст. мощностью производства электрической энергии 25 МВт и более","нет",null,1,null,"нет","","1","",null,null,null,null,null,null,null,null,null,null,4190066,"a",1705000]
[null,null,null,null,null,null,null,null,null,null,"",null,""]
[null,null,null,null,null,null,null,null,"",null,""]
[null,null,null,null,"",null,null,null,null,null,""]
[null,null,null,null,null,null,null,null,null,null,""]

{"sheet":"Форма 1.0.1 | Форма 4.7","index":5,"n_rows":20,"n_cols":7,"rows_kept":20,"cut":false,"hidden":false,"merged":[[19,4,19,5],[4,3,4,6],[5,3,5,6],[7,3,7,6],[8,3,8,5],[8,6,9,6]]}
[null,null,null,null,null,null,4]
[]
[]
[]
[null,null,null,"Форма 1.0.1 Основные параметры раскрываемой информации 1"]
[null,null,null,{"$f":"IF(org=0,\"Не определено\",org)","v":"Филиал АО Концерн Росэнергоатом Балаковская атомная станция"}]
[]
[null,null,22]
[null,null,null,"Параметры формы",null,null,"Описание параметров формы"]
["\\",null,null,"№ п/п",null,"Информация"]
[null,null,null,"1",2,3,4]
[null,null,null,1,"Дата заполнения/внесения изменений",{"$f":"IF(form_up_date=\"\",\"\",form_up_date)","v":"20.02.2023"},"Указывается календарная дата первичного заполнения или внесения изменений в форму в виде «ДД.ММ.ГГГГ»."]
[null,null,null,"2.1","Наименование централизованной системы коммунальной инфраструктуры","наименование отсутствует","Указывается наименование централизованной системы холодного водоснабжения/горячего водоснабжения/водоотведения/теплоснабжения, к которой относится размещаемая информация.\nВ случае наличия нескольких централизованных систем коммунальной инфраструктуры, информация по каждой из них указывается в отдельной строке. "]
[null,null,null,"3.1","Наименование регулируемого вида деятельности","Производство тепловой энергии. Комбинированная выработка с уст. мощностью производства электрической энергии 25 МВт и более","Указывается наименование вида регулируемой деятельности."]
[null,null,null,"4.1","Территория оказания услуги по регулируемому виду деятельности","x"]
[null,null,null,{"$f":"D15&\".1\"","v":"4.1.1"},"Субъект РФ",{"$f":"IF(region_name=\"\",\"\",region_name)","v":"Саратовская область"},"Указывается наименование субъекта Российской Федерации"]
[null,null,null,"4.1.1.1","муниципальный район","Балаковский муниципальный район","Указывается наименование муниципального района, на территории которого организация оказывает услуги по регулируемому виду деятельности."]
[null,null,null,"4.1.1.1.1","муниципальное образование","Натальинское (63607460)","Указывается наименование и код муниципального района, муниципального образования в соответствии с Общероссийским классификатором территорий муниципальных образований (далее - ОКТМО), входящего в муниципальный район, на территории которого организация оказывает услуги по регулируемому виду деятельности.\nВ случае оказания услуг по регулируемому виду деятельности на территории нескольких муниципальных районов (муниципальных образований) данные по каждому их них указываются в отдельной строке."]
[]
[null,null,null,null,"  1 Информация по данной форме публикуется при раскрытии информации по каждой из форм."]

{"sheet":"Форма 4.7","index":6,"n_rows":21,"n_cols":16,"rows_kept":21,"cut":false,"hidden":false,"merged":[[4,3,4,5],[6,3,6,5],[6,6,7,6],[11,6,12,6],[14,6,15,6]]}
[]
[]
[]
[]
[null,null,null,"Форма 4.7 Информация об условиях, на которых осуществляется поставка товаров и (или) оказание услуг"]
[]
[null,null,null,"Параметры формы",null,null,"Описание параметров формы"]
[null,null,null,"№ п/п","Наименование параметра","Ссылка на документ"]
[null,null,null,"1","2","3","4"]
[null,null,null,1,"Сведения об условиях публичных договоров поставок товаров, оказания услуг, в том числе договоров о подключении к системе теплоснабжения","x"]
[null,null,null,"1.1","форма публичного договора поставки товаров, оказания услуг","x"]
[null,null,null,"1.1.1","Типовая форма договора теплоснабжения","https://portal.eias.ru/Portal/DownloadPage.aspx?type=12&guid=dda82418-c4fd-4b54-a510-4b6d6cf46924","Указывается форма договора, используемая регулируемой организацией, в виде ссылки на документ, предварительно загруженный в хранилище файлов ФГИС ЕИАС.\nВ случае наличия нескольких форм таких договоров информация по каждой из них указывается в отдельной строке."]
[null,null,null,null,"Добавить сведения"]
[null,null,null,"1.2","договор о подключении к системе теплоснабжения","x"]
[null,null,null,"1.2.1",null,null,"Информация размещается в случае, если организация осуществляет услуги по подключению (технологическому присоединению) к системе теплоснабжения.\nУказывается ссылка на документ, предварительно загруженный в хранилище файлов ФГИС ЕИАС.\nВ случае наличия нескольких договоров о подключении к системе теплоснабжения информация по каждому из них указывается в отдельной строке."]
[null,null,null,null,"Добавить сведения"]
[null,null,null,"1.3","прочие договора","x"]
[null,null,null,"1.3.0"]
[null,null,null,null,"Добавить сведения"]
[]
["","","","","","","","","","","","","","","",""]

{"sheet":"Форма 1.0.2","index":7,"n_rows":15,"n_cols":13,"rows_kept":15,"cut":false,"hidden":true,"merged":[[11,10,12,10],[14,4,14,9],[4,3,4,9],[7,3,7,9],[7,10,9,10],[8,3,9,3],[8,4,8,5],[8,6,8,9]]}
[]
[]
[]
[]
[null,null,null,"Форма 1.0.2 Информация о публикации в печатных изданиях 2"]
[]
[]
[null,null,null,"Параметры формы",null,null,null,null,null,null,"Описание параметров формы"]
[null,null,null,"№ п/п","Форма публикации",null,"Официальное печатное издание"]
[null,null,null,null,"Номер","Наименование","Наименование","Номер","Дата выпуска","Ссылка на документ"]
[null,null,null,"1","2","3","4","5","6","7","8"]
["3","",null,"1",null,null,null,null,null,null,"В колонке «Дата выпуска» дата выпуска печатного издания указывается в виде «ДД.ММ.ГГГГ».\nВ колонке «Ссылка на документ» указывается ссылка на отсканированную копию печатного издания, предварительно загруженную в хранилище федеральной государственной информационной системы «Единая информационно-аналитическая система «Федеральный орган регулирования - региональные органы регулирования - субъекты регулирования» (далее – ФГИС ЕИАС), с опубликованной информацией.\nВ случае публикации информации в нескольких печатных изданиях информация по каждому из них указывается в отдельной строке.",null,{"$f":"IF(ISERROR(INDEX(kind_of_nameforms,MATCH(E12,kind_of_forms,0),1)),\"\",INDEX(kind_of_nameforms,MATCH(E12,kind_of_forms,0),1))","v":""}]
[null,null,null,null,"Добавить строку"]
[]
[null,null,null,null,"2 В данной форме публикуется информация по каждой из форм раскрытия, данные в которой относятся к муниципальному образованию, в котором отсутствует доступ в информационно-телекоммуникационную сеть «Интернет» (далее – сеть «Интернет»)."]

{"sheet":"Сведения об изменении","index":8,"n_rows":14,"n_cols":5,"rows_kept":14,"cut":false,"hidden":true,"merged":[[6,3,6,4],[7,3,7,4]]}
[]
[]
[]
[]
[]
[]
[null,null,null,"Сведения об изменениях в первоначально опубликованной информации"]
[null,null,null,{"$f":"IF(org=0,\"Не определено\",org)","v":"Филиал АО Концерн Росэнергоатом Балаковская атомная станция"}]
[]
[null,null,null,"№ п/п","Сведения"]
[null,null,null,"1","2"]
[null,null,null,0]
[null,null,null,1]
[null,null,null,null,"Добавить строку"]

{"sheet":"Комментарии","index":9,"n_rows":16,"n_cols":8,"rows_kept":16,"cut":false,"hidden":false,"merged":[[6,3,6,4],[7,3,7,4]]}
[]
[]
[]
[]
[]
[]
[null,null,null,"Комментарии"]
[null,null,null,{"$f":"IF(org=0,\"Не определено\",org)","v":"Филиал АО Концерн Росэнергоатом Балаковская атомная станция"}]
[]
[null,null,null,"№ п/п","Комментарий"]
[null,null,null,"1","2"]
[null,null,null,0]
[null,null,"О",1,"На листе \"Титульный\" нет возможности выбрать корректный тип теплоснабжающей организации \"Теплоснабжающая организация с ценами по соглашению сторон\" (отсутствует в списке выбора). В связи с этим выбран тип \"Регулируемая организация\".","","",""]
[null,null,"О",2,"На листе \"Форма 1.0.1\" в п.3.1. \"Наименование регулируемого вида деятельности\" автоматически подтягивается не корректная информация, сформированная на основании данных листа \"Титульный\".","","",""]
[null,null,"О",3,"В соответствии с частями 2.1 и 2.2 статьи 8 Федерального закона  от 27 июля 2010 г. N 190-ФЗ \"О теплоснабжении\", а также пунктом 5.5 Постановления Правительства РФ от 22 октября 2012 г. N 1075 \"О ценообразовании в сфере теплоснабжения\" с 01.01.2019 филиал АО «Концерн Росэнергоатом» «Балаковская атомная станция» перешел на отпуск теплоэнергии по ценам, определяемым соглашением сторон договора теплоснабжения, соответственно для Балаковской АЭС с 01.01.2019 тариф на тепловую энергию не регулируется.","","",""]
[null,null,null,null,"Добавить"]

{"sheet":"Проверка","index":10,"n_rows":4,"n_cols":5,"rows_kept":4,"cut":false,"hidden":false,"merged":[[1,1,1,4]]}
[]
[null,"Результат проверки"]
[]
[null,"Ссылка1","Ссылка2","Причина","Статус"]

{"sheet":"modProv","index":11,"n_rows":0,"n_cols":0,"rows_kept":0,"cut":false,"hidden":true,"merged":[]}

{"sheet":"modReestr","index":12,"n_rows":0,"n_cols":0,"rows_kept":0,"cut":false,"hidden":true,"merged":[]}

{"sheet":"AllSheetsInThisWorkbook","index":13,"n_rows":39,"n_cols":2,"rows_kept":39,"cut":false,"hidden":true,"merged":[]}
["Расчетные листы","Скрытые листы"]
["Инструкция","modProv"]
["Лог обновления","modReestr"]
["Титульный","AllSheetsInThisWorkbook"]
["Территории","modCheckCyan"]
["ВД и СКИ","modInfo"]
["Форма 1.0.1 | Форма 4.7","TEHSHEET"]
["Форма 4.7","modList11"]
["Форма 1.0.2","et_union_hor"]
["Сведения об изменении","et_union_vert"]
["Комментарии","modList00"]
["Проверка","modList02"]
[null,"modList03"]
[null,"modList04"]
[null,"modList07"]
[null,"modList09"]
[null,"modHTTP"]
[null,"modfrmRegion"]
[null,"MR_LIST"]
[null,"REESTR_VT"]
[null,"REESTR_VED"]
[null,"modfrmReestrObj"]
[null,"DataOrg"]
[null,"modfrmReestr"]
[null,"modUpdTemplMain"]
[null,"REESTR_ORG"]
[null,"modClassifierValidate"]
[null,"modHyp"]
[null,"modfrmDateChoose"]
[null,"modComm"]
[null,"modThisWorkbook"]
[null,"REESTR_MO"]
[null,"REESTR_MO_FILTER"]
[null,"modfrmReestrMR"]
[null,"modServiceModule"]
[null,"modfrmCheckUpdates"]
[null,"REESTR_DS"]
[null,"REESTR_CHS"]
[null,"REESTR_LINK"]

{"sheet":"modCheckCyan","index":14,"n_rows":13,"n_cols":1,"rows_kept":13,"cut":false,"hidden":true,"merged":[]}
[{"$f":"IF('ВД и СКИ'!$E$22=\"\",1,0)","v":0}]
[{"$f":"IF('ВД и СКИ'!$F$22=\"\",1,0)","v":0}]
[{"$f":"IF('ВД и СКИ'!$J$22=\"\",1,0)","v":0}]
[{"$f":"IF('Форма 4.7'!$E$12=\"\",1,0)","v":0}]
[{"$f":"IF('Форма 4.7'!$F$12=\"\",1,0)","v":0}]
[{"$f":"IF('Форма 1.0.2'!$E$12=\"\",1,0)","v":1}]
[{"$f":"IF('Форма 1.0.2'!$F$12=\"\",1,0)","v":1}]
[{"$f":"IF('Форма 1.0.2'!$G$12=\"\",1,0)","v":1}]
[{"$f":"IF('Форма 1.0.2'!$H$12=\"\",1,0)","v":1}]
[{"$f":"IF('Форма 1.0.2'!$I$12=\"\",1,0)","v":1}]
[{"$f":"IF('Форма 1.0.2'!$J$12=\"\",1,0)","v":1}]
[{"$f":"IF('Сведения об изменении'!$E$13=\"\",1,0)","v":1}]
[{"$f":"IF(Территории!$E$12=\"\",1,0)","v":0}]

{"sheet":"modInfo","index":15,"n_rows":11,"n_cols":2,"rows_kept":11,"cut":false,"hidden":true,"merged":[[4,3,4,10],[0,3,0,10],[1,3,1,10],[2,3,2,10],[3,3,3,10]]}
[null,"Территории"]
[1,"Наименование территории оказания услуг для целей идентификации"]
[2,"Муниципальные районы и муниципальные образования, на территории которых осуществляется оказание услуг"]
[null,"Дифференциация"]
[1,"В случае, если регулируемая организация осуществляет несколько видов деятельности, информация о которых подлежит раскрытию, информация по каждому виду деятельности раскрывается отдельно."]
[2,"Поле заполняется выбором значений из списка. Если значений для выбора нет - убедитесь, что лист \"Территории\" заполнен."]
[3,"Условное наименование централизованной системы коммунальной инфраструктуры для целей идентификации."]
[4,"В случае, если регулируемыми организациями оказываются услуги по нескольким технологически не связанным между собой  централизованным системам коммунальной инфраструктуры и если в отношении указанных централизованных систем устанавливаются различные тарифы, то информация раскрывается отдельно по каждой централизованной системе коммунальной инфраструктуры."]
[null,"Сведения об изменении"]
[1,"Лист заполняется в случае, если на Титульном листе в поле \"Тип отчета\" выбрано значение «Изменения в раскрытой ранее информации»."]
[null,"Нет доступных обновлений, версия отчёта актуальна"]

{"sheet":"TEHSHEET","index":16,"n_rows":87,"n_cols":26,"rows_kept":87,"cut":false,"hidden":true,"merged":[[0,18,0,19],[0,21,0,22]]}
["REGION",null,"year_list","logical","Месяц\n(MONTH)","Квартал\n(QUARTER)","Месяц\n(kind_of_publication)","Единица измерения объема оказываемых услуг ГВС\n/kind_of_unit_GVS/","Вид тарифа\n/list_of_tariff/","mr_id","версия шаблона\n (DocProp_Version)","0.1","Тип отчета\ndata_type",null,"Источники финансирования\n/source_of_funding/","цель инвестиционной программы /kind_of_purchase_method/",null,null,"Перечень форм\n(kind_of_forms)",null,null,"цель инвестиционной программы /objective_of_IPR/",null,null,null,"Тип организации\nkind_of_org_type"]
["Алтайский край",null,2017,"да","январь","I квартал","На официальном сайте организации","тыс.куб.м/сутки",null,52,"код шаблона\n(DocProp_TemplateCode)","FAS.JKH.OPEN.INFO.TERMS.WARM","первичное раскрытие информации",null,"кредиты банков","Торги/аукционы",null,null,"Форма 1.0.1","Основные параметры раскрываемой информации",null,"автоматизация (с уменьшением штата)",false,null,null,"Регулируемая организация"]
["Амурская область",null,2018,"нет","февраль","II квартал","На сайте регулирующего органа","Гкал/час","Без дифференциации","sys_id","сфера\n(TSphere)","ТС","изменения в раскрытой ранее информации",null,"кредиты иностранных банков","Прямые договора без торгов",null,null,"Форма 4.7","Информация об условиях, на которых осуществляется поставка товаров и (или) оказание услуг",null,"уменьшение удельных затрат (повышение КПД)",false,null,null,"Единая теплоснабжающая организация в ценовой зоне теплоснабжения"]
["Архангельская область",null,2019,null,"март","III квартал",null,"куб.м/час",null,104,"сфера(латиница)\n(TSphere_trans)","WARM",null,null,"заемные средства др. организаций","Прочее",null,null,null,null,null,"уменьшение издержек на производство",false,null,null,"Теплоснабжающая организация в ценовой зоне теплоснабжения"]
["Астраханская область",null,2020,null,"апрель","IV квартал",null,null,null,null,"сфера расширено\n(TSphere_full)",null,null,null,"федеральный бюджет",null,null,null,null,null,null,"снижение аварийности",false,null,null,"Теплосетевая организация в ценовой зоне теплоснабжения"]
["Белгородская область",null,2021,null,"май",null,null,null,null,null,null,null,null,null,"бюджет субъекта Российской Федерации",null,null,null,null,null,null,"прочее",false]
["Брянская область",null,2022,null,"июнь",null,null,null,null,null,null,null,null,null,"бюджет муниципального образования"]
["Владимирская область",null,2023,null,"июль",null,null,null,null,null,"true",null,null,null,"средства внебюджетных фондов"]
["Волгоградская область",null,2024,null,"август",null,null,null,null,null,null,null,null,null,"прибыль, направленная на инвестиции"]
["Вологодская область",null,null,null,"сентябрь",null,null,null,null,null,null,null,null,null,"амортизация"]
["Воронежская область",null,null,null,"октябрь",null,null,null,null,null,null,null,null,null,"инвестиционная надбавка к тарифу"]
["г.Байконур",null,null,null,"ноябрь",null,null,null,null,null,null,null,null,null,"плата за подключение (технологическое присоединение)"]
["г. Москва",null,null,null,"декабрь",null,null,null,null,null,null,null,null,null,"прочие средства"]
["г.Санкт-Петербург"]
["г.Севастополь"]
["Еврейская автономная область",null,null,null,null,null,"Текущая дата"]
["Забайкальский край",null,"Организация",{"$f":"IF(f_year = \"\",\"\", \"01.01.\"&f_year)","v":"01.01.2022"},{"$f":"IF(f_year = \"\",\"\",\"31.12.\"& f_year)","v":"31.12.2022"},null,"20.02.2023 13:19:26"]
["Ивановская область"]
["Иркутская область",null,null,null,null,null,"Признак изменения данных на листе Доступ к товарам и услугам"]
["Кабардино-Балкарская республика",null,"Виды деятельности",null,null,null,true]
["Калининградская область"]
["Калужская область"]
["Камчатский край"]
["Карачаево-Черкесская республика"]
["Кемеровская область"]
["Кировская область"]
["Костромская область"]
["Краснодарский край"]
["Красноярский край"]
["Курганская область"]
["Курская область"]
["Ленинградская область"]
["Липецкая область"]
["Магаданская область"]
["Московская область"]
["Мурманская область"]
["Ненецкий автономный округ"]
["Нижегородская область"]
["Новгородская область"]
["Новосибирская область"]
["Омская область"]
["Оренбургская область"]
["Орловская область"]
["Пензенская область"]
["Пермский край"]
["Приморский край"]
["Псковская область"]
["Республика Адыгея"]
["Республика Алтай"]
["Республика Башкортостан"]
["Республика Бурятия"]
["Республика Дагестан"]
["Республика Ингушетия"]
["Республика Калмыкия"]
["Республика Карелия"]
["Республика Коми"]
["Республика Крым"]
["Республика Марий Эл"]
["Республика Мордовия"]
["Республика Саха (Якутия)"]
["Республика Северная Осетия-Алания"]
["Республика Татарстан"]
["Республика Тыва"]
["Республика Хакасия"]
["Ростовская область"]
["Рязанская область"]
["Самарская область"]
["Саратовская область"]
["Сахалинская область"]
["Свердловская область"]
["Смоленская область"]
["Ставропольский край"]
["Тамбовская область"]
["Тверская область"]
["Томская область"]
["Тульская область"]
["Тюменская область"]
["Удмуртская республика"]
["Ульяновская область"]
["Хабаровский край"]
["Ханты-Мансийский автономный округ"]
["Челябинская область"]
["Чеченская республика"]
["Чувашская республика"]
["Чукотский автономный округ"]
["Ямало-Ненецкий автономный округ"]
["Ярославская область"]

{"sheet":"modList11","index":17,"n_rows":0,"n_cols":0,"rows_kept":0,"cut":false,"hidden":true,"merged":[]}

{"sheet":"et_union_hor","index":18,"n_rows":66,"n_cols":26,"rows_kept":66,"cut":false,"hidden":true,"merged":[[50,3,50,5],[50,6,51,6],[14,2,15,2],[14,3,15,3],[14,4,15,4],[19,2,20,2],[19,5,20,5],[34,6,35,6],[19,6,20,6],[49,3,49,6],[34,7,35,7],[34,8,35,8],[34,9,35,9],[28,8,29,8],[28,9,29,9],[19,7,20,7],[28,3,30,3],[28,4,30,4],[28,5,30,5],[28,6,29,6],[28,7,29,7]]}
[]
[]
["et_Comm"]
[]
[]
[]
["et_List04"]
[]
[]
[]
[]
[]
["et_List09_0"]
[]
[null,"auto",null,1,null,null,0,null,null,"0",null,null,{"$f":"mergeValue(H15)","v":0},null,null,{"$f":"IF(ISERROR(MATCH(MID(Q15,1,250),MID(note_ter,1,250),0)),\"n\",\"y\")","v":"y"},null,{"$f":"K15&\"(\"&L15&\")\"","v":"()"}]
[null,null,null,null,null,null,null,"Добавить МР"]
[]
["et_List09_1"]
[]
[null,"auto",null,null,null,null,0,null,null,"0",null,null,{"$f":"mergeValue(H20)","v":0},null,null,null,null,{"$f":"K20&\"(\"&L20&\")\"","v":"()"}]
[null,null,null,null,null,null,null,null,null,null,"Добавить МО"]
[]
["et_List09_2"]
[]
[null,"auto",null,null,null,null,null,null,null,0,null,null,{"$f":"mergeValue(H25)","v":0},null,null,null,null,{"$f":"K25&\" (\"&L25&\")\"","v":" ()"}]
[]
["et_List07_1"]
[]
[null,null,null,"1",null,"нет",null,1,null,"нет",null,"1",null,null,null,null,null,null,null,null,null,null,null,null,"a",1705000]
[null,null,null,null,null,null,null,null,null,null,null,null,"Добавить централизованную систему коммунальной инфраструктуры"]
[null,null,null,null,null,null,null,null,"Добавить описание территории оказания услуг"]
[]
["et_List07_4"]
[]
[null,null,null,null,null,null,null,1,null,"нет",null,"1",null,null,null,null,null,null,null,null,null,null,null,null,"a",1705000]
[null,null,null,null,null,null,null,null,null,null,null,null,"Добавить централизованную систему коммунальной инфраструктуры"]
[]
["et_List07_5"]
[]
[null,null,null,null,null,null,null,null,null,null,null,"1",null,null,null,null,null,null,null,null,null,null,null,null,"a",1705000]
[]
[]
["et_List03"]
[]
["3","",null,null,null,null,null,null,null,null,null,null,{"$f":"IF(ISERROR(INDEX(kind_of_nameforms,MATCH(E45,kind_of_forms,0),1)),\"\",INDEX(kind_of_nameforms,MATCH(E45,kind_of_forms,0),1))","v":""}]
[]
["et_List02_st","et_List02_ter","et_List02_mr","et_List02_mo"]
[]
[]
[]
[null,null,null,"Параметры формы",null,null,"Описание параметров формы"]
["\\",null,null,"№ п/п",null,"Информация"]
[null,null,null,"1",2,3,4]
[null,null,null,1,"Дата заполнения/внесения изменений",{"$f":"IF(form_up_date=\"\",\"\",form_up_date)","v":"20.02.2023"},"Указывается календарная дата первичного заполнения или внесения изменений в форму в виде «ДД.ММ.ГГГГ»."]
[null,null,null,"2.1","Наименование централизованной системы коммунальной инфраструктуры",null,"Указывается наименование централизованной системы холодного водоснабжения/горячего водоснабжения/водоотведения/теплоснабжения, к которой относится размещаемая информация.\nВ случае наличия нескольких централизованных систем коммунальной инфраструктуры, информация по каждой из них указывается в отдельной строке. "]
[null,null,null,"3.1","Наименование регулируемого вида деятельности",null,"Указывается наименование вида регулируемой деятельности."]
[null,null,null,"4.1","Территория оказания услуги по регулируемому виду деятельности","x"]
[null,null,null,{"$f":"D57&\".1\"","v":"4.1.1"},"Субъект РФ",{"$f":"IF(region_name=\"\",\"\",region_name)","v":"Саратовская область"},"Указывается наименование субъекта Российской Федерации"]
[null,null,null,"4.1.1.1","муниципальный район",null,"Указывается наименование муниципального района, на территории которого организация оказывает услуги по регулируемому виду деятельности."]
[null,null,null,"4.1.1.1.1","муниципальное образование",null,"Указывается наименование и код муниципального района, муниципального образования в соответствии с Общероссийским классификатором территорий муниципальных образований (далее - ОКТМО), входящего в муниципальный район, на территории которого организация оказывает услуги по регулируемому виду деятельности.\nВ случае оказания услуг по регулируемому виду деятельности на территории нескольких муниципальных районов (муниципальных образований) данные по каждому их них указываются в отдельной строке."]
[]
[]
[]
[]
[]
["et_List11_1"]

{"sheet":"et_union_vert","index":19,"n_rows":0,"n_cols":0,"rows_kept":0,"cut":false,"hidden":true,"merged":[]}

{"sheet":"modList00","index":20,"n_rows":0,"n_cols":0,"rows_kept":0,"cut":false,"hidden":true,"merged":[]}

{"sheet":"modList02","index":21,"n_rows":0,"n_cols":0,"rows_kept":0,"cut":false,"hidden":true,"merged":[]}

{"sheet":"modList03","index":22,"n_rows":0,"n_cols":0,"rows_kept":0,"cut":false,"hidden":true,"merged":[]}

{"sheet":"modList04","index":23,"n_rows":0,"n_cols":0,"rows_kept":0,"cut":false,"hidden":true,"merged":[]}

{"sheet":"modList07","index":24,"n_rows":0,"n_cols":0,"rows_kept":0,"cut":false,"hidden":true,"merged":[[5,0,6,1],[17,0,18,0]]}

{"sheet":"modList09","index":25,"n_rows":0,"n_cols":0,"rows_kept":0,"cut":false,"hidden":true,"merged":[]}

{"sheet":"modHTTP","index":26,"n_rows":0,"n_cols":0,"rows_kept":0,"cut":false,"hidden":true,"merged":[]}

{"sheet":"modfrmRegion","index":27,"n_rows":0,"n_cols":0,"rows_kept":0,"cut":false,"hidden":true,"merged":[]}

{"sheet":"MR_LIST","index":28,"n_rows":0,"n_cols":0,"rows_kept":0,"cut":false,"hidden":true,"merged":[]}

{"sheet":"REESTR_VT","index":29,"n_rows":0,"n_cols":0,"rows_kept":0,"cut":false,"hidden":true,"merged":[]}

{"sheet":"REESTR_VED","index":30,"n_rows":11,"n_cols":2,"rows_kept":11,"cut":false,"hidden":true,"merged":[]}
["ID_TARIFF_NAME","VED_NAME"]
[4190064,"Производство тепловой энергии. Некомбинированная выработка"]
[4190065,"Производство тепловой энергии. Комбинированная выработка с уст. мощностью производства электрической энергии менее 25 МВт"]
[4190066,"Производство тепловой энергии. Комбинированная выработка с уст. мощностью производства электрической энергии 25 МВт и более"]
[4190067,"Производство. Теплоноситель"]
[4190068,"Передача. Тепловая энергия"]
[4190069,"Передача. Теплоноситель"]
[4190070,"Сбыт. Тепловая энергия"]
[4190071,"Сбыт. Теплоноситель"]
[4190072,"Подключение (технологическое присоединение) к системе теплоснабжения"]
[4190073,"Поддержание резервной тепловой мощности при отсутствии потребления тепловой энергии"]

{"sheet":"modfrmReestrObj","index":31,"n_rows":0,"n_cols":0,"rows_kept":0,"cut":false,"hidden":true,"merged":[]}

{"sheet":"DataOrg","index":32,"n_rows":0,"n_cols":0,"rows_kept":0,"cut":false,"hidden":true,"merged":[]}

{"sheet":"modfrmReestr","index":33,"n_rows":0,"n_cols":0,"rows_kept":0,"cut":false,"hidden":true,"merged":[]}

{"sheet":"modUpdTemplMain","index":34,"n_rows":0,"n_cols":0,"rows_kept":0,"cut":false,"hidden":true,"merged":[]}

{"sheet":"REESTR_ORG","index":35,"n_rows":159,"n_cols":10,"rows_kept":159,"cut":false,"hidden":true,"merged":[]}
["№","REGION_ID","REGION_NAME","RST_ORG_ID","ORG_NAME","INN_NAME","KPP_NAME","ORG_START_DATE","ORG_END_DATE"]
[1,"2639","Саратовская область","26452156","АО  \"НПП Алмаз\"","6453119615","645301001",null,null,"WARM"]
[2,"2639","Саратовская область","28796046","АО \"ГТ Энерго\"","7703806647","772801001",null,null,"WARM"]
[3,"2639","Саратовская область","30354412","АО \"Главное управление жилищно-коммунального хозяйства\"","5116000922","631743001",null,null,"WARM"]
[4,"2639","Саратовская область","26374905","АО \"Коммунальные системы Карабулака\"","6404776174","640401001",null,null,"WARM"]
[5,"2639","Саратовская область","26452149","АО \"Металлист\"","6453002889","645301001",null,null,"WARM"]
[6,"2639","Саратовская область","26456468","АО \"НПП \"Контакт\"","6453097665","644750001",null,null,"WARM"]
[7,"2639","Саратовская область","26617350","АО \"Оборонэнергосбыт\"","7704731218","773043001","23-03-2010 00:00:00",null,"WARM"]
[8,"2639","Саратовская область","26650729","АО \"РЖД - ЗДОРОВЬЕ\" (Санаторий \"Волжские дали\" филиал ОА \"РЖД-ЗДОРОВЬЕ\")","7703715816","643243001",null,null,"WARM"]
[9,"2639","Саратовская область","26546012","АО \"РЭУ\"","7714783092","644943001",null,null,"WARM"]
[10,"2639","Саратовская область","27570962","АО \"Санаторий \"Светлана\"","6441013332","644101001",null,null,"WARM"]
[11,"2639","Саратовская область","27629786","АО \"Санаторий Октябрьское ущелье\"","6455002010","645501001",null,null,"WARM"]
[12,"2639","Саратовская область","31363058","АО \"СарАэро-Инвест\"","6450079058","643201001","05-07-2013 00:00:00",null,"WARM"]
[13,"2639","Саратовская область","28263451","АО \"Теплосервис\"","6453055440","645301001",null,null,"WARM"]
[14,"2639","Саратовская область","26454300","АО \"Торговый Дом \"ТЦ Поволжье\"","6453012534","645301001",null,null,"WARM"]
[15,"2639","Саратовская область","26485308","АО “РЭУ” “Самарский”","7714783092","631143001",null,null,"WARM"]
[16,"2639","Саратовская область","27434222","АО ПБО \"Заря\"","6455005980","645501001",null,null,"WARM"]
[17,"2639","Саратовская область","28546402","БФ АО \"Апатит\"","5103070023","643943001",null,null,"WARM"]
[18,"2639","Саратовская область","26456087","Вагонный участок Саратов-Пассажирский - структурное подразделение Приволжского филиала - АО \"Федеральная пассажирская компания\"","7708709686","645245002",null,null,"WARM"]
[19,"2639","Саратовская область","26641668","Войсковая часть 44231","6440005593","644001001",null,null,"WARM"]
[20,"2639","Саратовская область","27553972","ГАУ СО СОЦ\" \"Ударник\"","6449023100","644901001",null,null,"WARM"]
[21,"2639","Саратовская область","28491895","ГУ МВД России по Саратовской области","6455014992","645201001",null,null,"WARM"]
[22,"2639","Саратовская область","28491867","ГУЗ \"Саратовская областная клиническая больница с паталогоанатомическим центром\" Министерства здравоохранения СО","6454028569","645401001",null,null,"WARM"]
[23,"2639","Саратовская область","26453803","Дирекция по тепловодоснабжению Приволжской железной дороги - филиала ОАО \"РЖД\"","7708503727","645445001",null,null,"WARM"]
[24,"2639","Саратовская область","26450959","ЗАО \"Петровский завод автозапчастей АМО ЗИЛ\"","6444002145","644401001",null,"23-03-2022 00:00:00","WARM"]
[25,"2639","Саратовская область","26451892","ЗАО \"Производственное предприятие железобетонных  конструкций - 3\"","6449008905","644901001",null,null,"WARM"]
[26,"2639","Саратовская область","27819330","ЗАО \"Технопромэнерго\"","7721677514","772801001",null,null,"WARM"]
[27,"2639","Саратовская область","26451896","ЗАО \"Тролза\"","6449972323","644901001",null,null,"WARM"]
[28,"2639","Саратовская область","31639987","ИП Гарихина Л.Н.","645104280392","отсутствует","14-10-2022 00:00:00",null,"WARM"]
[29,"2639","Саратовская область","28491844","Каменское МУП ЖКХ","6442007645","644201001",null,null,"WARM"]
[30,"2639","Саратовская область","26450821","Краснокутское МУП \"Тепловые сети\"","6417970958","641701001",null,null,"WARM"]
[31,"2639","Саратовская область","30991854","МБУ \"Благоустройство\"","6411078276","641101001",null,null,"WARM"]
[32,"2639","Саратовская область","28070228","МКП \"Тепло\"","6422968175","642201001",null,null,"WARM"]
[33,"2639","Саратовская область","31502478","МКП «ККС СМР»","6433007712","643301001","22-10-2021 00:00:00",null,"WARM"]
[34,"2639","Саратовская область","27549253","МКП Пугачевского муниципального района \"Тепловик\"","6445011872","644501001",null,null,"WARM"]
[35,"2639","Саратовская область","28868493","МКП Пугачевского муниципального района \"Теплоснаб\"","6445013252","644501001",null,null,"WARM"]
[36,"2639","Саратовская область","31465934","МКУ \"Вольсктеплоэнерго\"","6441024655","644101001",null,null,"WARM"]
[37,"2639","Саратовская область","31208536","МКУ \"Калининсктепло\"","6415006089","641501001","26-02-2018 00:00:00",null,"WARM"]
[38,"2639","Саратовская область","28053968","МКУ \"Служба хозяйственного и транспортного обслуживания\"","6432015911","643201001",null,null,"WARM"]
[39,"2639","Саратовская область","31460874","МКУ \"ТеплоВодоРесурс\"","6419009010","641901001",null,null,"WARM"]
[40,"2639","Саратовская область","31533816","МКУ \"УМТО АДМИНИСТРАЦИИ ВМР\"","6409004044","640901001","19-11-2021 00:00:00",null,"WARM"]
[41,"2639","Саратовская область","26450229","МП \"Бытовик\"","6438912097","643801001",null,null,"WARM"]
[42,"2639","Саратовская область","31039769","МУМП \"Возрожденческое\"","6448011976","644801001",null,null,"WARM"]
[43,"2639","Саратовская область","26374930","МУП \"Балаково-водоканал\"","6439053289","643901001",null,null,"WARM"]
[44,"2639","Саратовская область","28442549","МУП \"Газтрансмаш Красноармейского муниципального района\"","6442012123","644201001",null,null,"WARM"]
[45,"2639","Саратовская область","26374929","МУП \"ЖКХ Турковского района\"","6435010573","643501001",null,null,"WARM"]
[46,"2639","Саратовская область","26374927","МУП \"ЖКХ\" ЗАТО Светлый","6434912508","643401001",null,null,"WARM"]
[47,"2639","Саратовская область","26627179","МУП \"Коммунальный комплекс\"","6444008556","644401001",null,null,"WARM"]
[48,"2639","Саратовская область","30991932","МУП \"Коммунальный сервис\"","6401003440","640101001",null,null,"WARM"]
[49,"2639","Саратовская область","26650621","МУП \"Лидер\"","6436904372","643601001",null,null,"WARM"]
[50,"2639","Саратовская область","30991881","МУП \"Озинское\"","6423005000","642301001",null,null,"WARM"]
[51,"2639","Саратовская область","26450414","МУП \"Орошаемское\" РМПО ЖКХ","6410000171","641001001",null,null,"WARM"]
[52,"2639","Саратовская область","26450999","МУП \"Питерское\"","6426004647","642601001",null,null,"WARM"]
[53,"2639","Саратовская область","26374946","МУП \"Покровск-тепло ЭМО Саратовской области\"","6449031245","644901001",null,null,"WARM"]
[54,"2639","Саратовская область","30351924","МУП \"Саратовский коммунальный комплекс\"","6453006428","645101001",null,null,"WARM"]
[55,"2639","Саратовская область","28261316","МУП \"Тепло\"","6443021402","644301001",null,null,"WARM"]
[56,"2639","Саратовская область","30351182","МУП «Тепловые сети» г.Шиханы","6441022619","644101001",null,null,"WARM"]
[57,"2639","Саратовская область","30351900","МУП БМР \"СТБР\"","6440027438","644001001",null,null,"WARM"]
[58,"2639","Саратовская область","26374909","МУП Водоканал  \"Монолит\"","6418001064","641801001",null,null,"WARM"]
[59,"2639","Саратовская область","26374915","МУП ЖКХ","6430001448","643001001",null,null,"WARM"]
[60,"2639","Саратовская область","26452127","МУП ЖКХ ЗАТО пос.Михайловский","6418000367","641801001",null,"14-10-2022 00:00:00","WARM"]
[61,"2639","Саратовская область","29648849","МУП СМР \"ЖКХ\"","6433007222","643301001",null,null,"WARM"]
[62,"2639","Саратовская область","26809767","ОАО \"Завод \"Проммаш\"","6452042857","645201001",null,null,"WARM"]
[63,"2639","Саратовская область","27649681","ОАО \"Саратовские обои\"","6454001398","645401001","09-03-2012 00:00:00",null,"WARM"]
[64,"2639","Саратовская область","28870441","ОАО \"Саратовский полиграфкомбинат\"","6454072656","645401001",null,null,"WARM"]
[65,"2639","Саратовская область","26451882","ОАО \"Транспортное машиностроение\"","6449025820","644901001",null,null,"WARM"]
[66,"2639","Саратовская область","26643221","ОАО \"Швейная фабрика №2\"","6454005427","645401001",null,null,"WARM"]
[67,"2639","Саратовская область","26451918","ОАО \"Энгельсские городские тепловые сети\"","6449053070","644901001",null,null,"WARM"]
[68,"2639","Саратовская область","28053838","ООО \" Ровное ЖКС\"","6428005170","642801001",null,null,"WARM"]
[69,"2639","Саратовская область","27573321","ООО \"АРДИС\"","6325039428","632501001",null,"15-08-2022 00:00:00","WARM"]
[70,"2639","Саратовская область","26450196","ООО \"Аркадакские тепловые сети\"","6402901912","640201001",null,null,"WARM"]
[71,"2639","Саратовская область","26374912","ООО \"Вектор 2002\"","6421013461","642101001",null,null,"WARM"]
[72,"2639","Саратовская область","26451844","ООО \"Вера\"","6448010725","644801401",null,null,"WARM"]
[73,"2639","Саратовская область","26651984","ООО \"Газпром ПХГ\" \"Песчано-Уметское УПХГ\"","5003065767","643202001",null,null,"WARM"]
[74,"2639","Саратовская область","26454260","ООО \"Газпром ПХГ\" филиал \"Саратовское управление аварийно-восстановительных  работ и капитального ремонта скважин\"","5003065767","645302001",null,null,"WARM"]
[75,"2639","Саратовская область","26455506","ООО \"Газпром трансгаз Саратов\" - филиал ОАО \"Газпром\"","6453010110","546050001",null,null,"WARM"]
[76,"2639","Саратовская область","30384133","ООО \"ДомаКонтакт\"","6453085229","645301001",null,null,"WARM"]
[77,"2639","Саратовская область","27568736","ООО \"Екатериновка тепло\"","6412904800","641201001",null,null,"WARM"]
[78,"2639","Саратовская область","26650703","ООО \"Звездный\"","6449056874","644901001",null,null,"WARM"]
[79,"2639","Саратовская область","31589758","ООО \"ИСК\" ( ОП \"Саратовское\")","7734434340","770301001",null,null,"WARM"]
[80,"2639","Саратовская область","26456028","ООО \"Интеграл\"","6450093278","645001001",null,null,"WARM"]
[81,"2639","Саратовская область","30989889","ООО \"КВС\"","6450090478","645401001","07-11-2017 00:00:00",null,"WARM"]
[82,"2639","Саратовская область","26454312","ООО \"Кант\"","6453003970","645301001",null,null,"WARM"]
[83,"2639","Саратовская область","26450200","ООО \"Коммунальная сервисная компания\"","6438911336","643801001",null,null,"WARM"]
[84,"2639","Саратовская область","28135552","ООО \"Коммунальные системы Карабулака\"","6404005534","640401001",null,null,"WARM"]
[85,"2639","Саратовская область","26413215","ООО \"ЛУКОЙЛ-ЭНЕРГОСЕТИ\"","5260230051","525350001",null,null,"WARM"]
[86,"2639","Саратовская область","26452057","ООО \"Матис\"","6449011440","644901001",null,null,"WARM"]
[87,"2639","Саратовская область","28450403","ООО \"Медицинский центр\"","6451427893","645401001",null,null,"WARM"]
[88,"2639","Саратовская область","28442623","ООО \"Поволжресурс\"","6450079724","645500100",null,null,"WARM"]
[89,"2639","Саратовская область","31523126","ООО \"Промресурс\"","6454098816","645301001","22-10-2021 00:00:00",null,"WARM"]
[90,"2639","Саратовская область","26450793","ООО \"Промсервис\"","6414002540","641401001",null,null,"WARM"]
[91,"2639","Саратовская область","28858503","ООО \"Протос\"","6434014039","643401001",null,null,"WARM"]
[92,"2639","Саратовская область","30352072","ООО \"РТГК-Центр\"","7713790241","771301001",null,null,"WARM"]
[93,"2639","Саратовская область","26455238","ООО \"Риэлт-А\"","6452089012","645201001","31-08-2012 00:00:00",null,"WARM"]
[94,"2639","Саратовская область","31354847","ООО \"Рубин\"","6448010242","644801001",null,null,"WARM"]
[95,"2639","Саратовская область","31359280","ООО \"Саратоворгсинтез\"","6451122250","645101001","30-07-2002 00:00:00",null,"WARM"]
[96,"2639","Саратовская область","26454223","ООО \"Саратовэнергонефть\"","6453070092","645001001",null,null,"WARM"]
[97,"2639","Саратовская область","26455484","ООО \"Спарт-2002\"","6452075605","645201001",null,null,"WARM"]
[98,"2639","Саратовская область","26375053","ООО \"Спектр\"","6407002637","640701001",null,null,"WARM"]
[99,"2639","Саратовская область","30351667","ООО \"Сторожевская коммунальная компания\"","6434014977","643401001",null,null,"WARM"]
[100,"2639","Саратовская область","31365214","ООО \"Стройресурс\"","6449088386","644901001",null,null,"WARM"]
[101,"2639","Саратовская область","31269560","ООО \"Т-Сервис Плюс\"","6450105082","645001001","20-12-2018 00:00:00",null,"WARM"]
[102,"2639","Саратовская область","28450437","ООО \"ТД Газтеплосервис\"","6453110309","645401001",null,null,"WARM"]
[103,"2639","Саратовская область","31362136","ООО \"ТК \"ТУРА\"","7203487079","720301001","29-08-2019 00:00:00",null,"WARM"]
[104,"2639","Саратовская область","28981494","ООО \"ТЭСКо\"","6453114102","645301001","04-02-2011 00:00:00",null,"WARM"]
[105,"2639","Саратовская область","28974980","ООО \"Тепло\"","6449075690","644901001",null,null,"WARM"]
[106,"2639","Саратовская область","31006003","ООО \"Тепло-Ресурс\"","6451008797","645101001",null,null,"WARM"]
[107,"2639","Саратовская область","31322621","ООО \"ТеплоСбытСервис\"","6449093065","644901001","17-05-2019 00:00:00",null,"WARM"]
[108,"2639","Саратовская область","26455296","ООО \"ТеплоЭлектроГенерирующая Компания\"","6453099119","645001001","18-04-2008 00:00:00",null,"WARM"]
[109,"2639","Саратовская область","31006031","ООО \"ТеплоЭлектроСетевая компания\"","6439093267","643901001",null,null,"WARM"]
[110,"2639","Саратовская область","31226370","ООО \"Тепловой ресурс\"","6455063453","645501001","26-03-2015 00:00:00",null,"WARM"]
[111,"2639","Саратовская область","31441252","ООО \"Теплодар\"","6452035923","645201001","24-05-2011 00:00:00",null,"WARM"]
[112,"2639","Саратовская область","30351913","ООО \"Теплоресурс\"","6453138015","645301001",null,null,"WARM"]
[113,"2639","Саратовская область","26450936","ООО \"Теплосервис\"","6423234988","642301001",null,null,"WARM"]
[114,"2639","Саратовская область","30853106","ООО \"Теплосервис\"","6451008807","645101001",null,null,"WARM"]
[115,"2639","Саратовская область","28868478","ООО \"Теплосетевая компания\"","6454142021","645401001",null,null,"WARM"]
[116,"2639","Саратовская область","29648917","ООО \"Теплосистемы\"","6452115061","645201001",null,null,"WARM"]
[117,"2639","Саратовская область","30351823","ООО \"Теплоснаб\"","6440024229","644001001",null,"30-11-2022 00:00:00","WARM"]
[118,"2639","Саратовская область","30855216","ООО \"Теплоцентр\"","6454120010","644001001",null,null,"WARM"]
[119,"2639","Саратовская область","27890471","ООО \"Теплоэлемент\"","6444008179","644401001",null,null,"WARM"]
[120,"2639","Саратовская область","30403863","ООО \"Теплый дом-Балаково\"","6452112254","645201001",null,null,"WARM"]
[121,"2639","Саратовская область","31006035","ООО \"Техсервис\"","6439087351","643901001",null,null,"WARM"]
[122,"2639","Саратовская область","26456883","ООО \"Торгово-строительное управление Энгельсстрой\"","6449009546","644901001",null,null,"WARM"]
[123,"2639","Саратовская область","28491925","ООО \"Трансэнергетик\"","6452908455","645201001",null,null,"WARM"]
[124,"2639","Саратовская область","26650721","ООО \"УК Жилищник\"","6434013148","643401001",null,null,"WARM"]
[125,"2639","Саратовская область","27568808","ООО \"Управляющая компания \"Базис\"","6444008228","644401001",null,null,"WARM"]
[126,"2639","Саратовская область","30403816","ООО \"Услуги-Комплекс\"","6404005206","640401001",null,null,"WARM"]
[127,"2639","Саратовская область","26450416","ООО \"Уют\"","6411060423","641101001",null,null,"WARM"]
[128,"2639","Саратовская область","28795285","ООО \"ЭТС\"","6449072611","644901001",null,null,"WARM"]
[129,"2639","Саратовская область","28444655","ООО \"ЭТСК\"","6449064755","644901001",null,null,"WARM"]
[130,"2639","Саратовская область","31111004","ООО \"Энерго-Сервис\"","6450090319","770301001","20-06-2018 00:00:00",null,"WARM"]
[131,"2639","Саратовская область","31458222","ООО \"Энергоресурс\"","6449098779","644901001",null,null,"WARM"]
[132,"2639","Саратовская область","28450366","ООО \"Энергосбыт-Петровск\"","6453128874","645301001",null,null,"WARM"]
[133,"2639","Саратовская область","30856265","ООО \"Энергосбыт-Покровск\"","6453128930","645301001",null,null,"WARM"]
[134,"2639","Саратовская область","28462659","ООО \"Энергосбыт-Техстекло\"","6452104849","645201001",null,null,"WARM"]
[135,"2639","Саратовская область","28462641","ООО \"Энергосбыт-Шелковичная\"","6453129067","645301001",null,null,"WARM"]
[136,"2639","Саратовская область","28134200","ООО НПФ \"МОССАР\"","6454073547","644301001",null,null,"WARM"]
[137,"2639","Саратовская область","27995860","ООО ПКП \"Теплострой комплект\"","6451401084","645301001",null,null,"WARM"]
[138,"2639","Саратовская область","30794362","ООО УЖК \"Вектор+\"","6439080116","643901001",null,null,"WARM"]
[139,"2639","Саратовская область","28221923","ООО Энгельсское приборостроительное объединение \"Сигнал\"","6449042991","644901001",null,null,"WARM"]
[140,"2639","Саратовская область","31289532","Общество с ограниченной ответственностью «ЛУКОЙЛ-ЭНЕРГОСЕТИ»","5260230051","775050001",null,null,"WARM"]
[141,"2639","Саратовская область","26651667","Пассажирское вагонное депо Саратов - структурное подразделение Приволжского филиала АО \"ФПК\"","7708709686","645243001",null,null,"WARM"]
[142,"2639","Саратовская область","26451039","Ртищевское МУП \"Теплотехник\"","6446010920","644601001",null,null,"WARM"]
[143,"2639","Саратовская область","26455460","СГТУ имени Гагарина Ю.А.","6454004110","645401001",null,null,"WARM"]
[144,"2639","Саратовская область","26455369","Строительно-монтажное предприятие \"Народный водопровод\"","6452050382","645201001",null,"30-11-2022 00:00:00","WARM"]
[145,"2639","Саратовская область","30856202","ФГКУ \"Специальное управление ФПС №46 МЧС России\"","6452917611","645201001",null,null,"WARM"]
[146,"2639","Саратовская область","26450194","ФГКУ комбинат \"Волжанка\" Росрезерва","6402003852","640201001",null,null,"WARM"]
[147,"2639","Саратовская область","27629782","ФГУ ПУ ФСБ Российской Федерации по Саратовской и Самарской областям","6453081111","645301001",null,null,"WARM"]
[148,"2639","Саратовская область","28423779","ФКУ \"ЦХиСО ГУ МВД России по Саратовской области\"","6452099772","645201001",null,null,"WARM"]
[149,"2639","Саратовская область","26455411","ФКУ ИК-33 УФСИН России по Саратовской области","6453052512","645301001",null,null,"WARM"]
[150,"2639","Саратовская область","28945713","Филиал \"Саратовский\" ПАО \"Т Плюс\"","6315376946","645043001",null,null,"WARM"]
[151,"2639","Саратовская область","31533826","Филиал АО \"НПЦАП\" - \"ПО \"Корпус\"","9728050571","645243001","25-11-2021 00:00:00",null,"WARM"]
[152,"2639","Саратовская область","26506486","Филиал АО Концерн Росэнергоатом Балаковская атомная станция","7721632827","643943001",null,null,"WARM"]
[153,"2639","Саратовская область","26455981","Филиал ООО \"Газпром трансгаз Саратов\" Петровское ЛПУ МГ","6453010110","644403001",null,null,"WARM"]
[154,"2639","Саратовская область","26455427","Филиал ООО \"Газпром трансгаз Саратов\" Сторожевское ЛПУ МГ","6453010110","643403004",null,null,"WARM"]
[155,"2639","Саратовская область","26455453","Филиал ООО \"Газпром трансгаз Саратов\" Управление материально-технического снабжения и комплектации","6453010110","643443001",null,null,"WARM"]
[156,"2639","Саратовская область","30914574","Филиал ФГБУ \"ЦЖКУ\" МИНОБОРОНЫ РОССИИ (по ЦВО)","7729314745","667043001",null,null,"WARM"]
[157,"2639","Саратовская область","26650679","ЧУЗ \"КБ \"РЖД-Медицина\" г. Саратов\"","6454070024","645401001",null,null,"WARM"]
[158,"2639","Саратовская область","26456106","Юго-Восточная дирекция по тепловодоснабжению - структурное подразделение Центральной дирекции по тепловодоснабжению - филиала ОАО \"РЖД\"","7708503727","770801002",null,null,"WARM"]

{"sheet":"modClassifierValidate","index":36,"n_rows":0,"n_cols":0,"rows_kept":0,"cut":false,"hidden":true,"merged":[]}

{"sheet":"modHyp","index":37,"n_rows":0,"n_cols":0,"rows_kept":0,"cut":false,"hidden":true,"merged":[]}

{"sheet":"modfrmDateChoose","index":38,"n_rows":0,"n_cols":0,"rows_kept":0,"cut":false,"hidden":true,"merged":[]}

{"sheet":"modComm","index":39,"n_rows":0,"n_cols":0,"rows_kept":0,"cut":false,"hidden":true,"merged":[]}

{"sheet":"modThisWorkbook","index":40,"n_rows":0,"n_cols":0,"rows_kept":0,"cut":false,"hidden":true,"merged":[]}

{"sheet":"REESTR_MO","index":41,"n_rows":347,"n_cols":4,"rows_kept":347,"cut":false,"hidden":true,"merged":[]}
["№","МР","МО","МО_ОКТМО"]
[1,"Александрово-Гайский муниципальный район","Александрово-Гайский муниципальный район","63602000"]
[2,"Александрово-Гайский муниципальный район","Александрово-Гайское","63602401"]
[3,"Александрово-Гайский муниципальный район","Новоалександровское","63602415"]
[4,"Аркадакский муниципальный район","Аркадакский муниципальный район","63603000"]
[5,"Аркадакский муниципальный район","Большежуравское","63603415"]
[6,"Аркадакский муниципальный район","Город Аркадак","63603101"]
[7,"Аркадакский муниципальный район","Краснознаменское","63603435"]
[8,"Аркадакский муниципальный район","Львовское","63603440"]
[9,"Аркадакский муниципальный район","Малиновское","63603465"]
[10,"Аркадакский муниципальный район","Росташовское","63603470"]
[11,"Аркадакский муниципальный район","Семеновское","63603475"]
[12,"Аткарский муниципальный район","Аткарский муниципальный район","63604000"]
[13,"Аткарский муниципальный район","Аткарское","63604101"]
[14,"Аткарский муниципальный район","Барановское","63604405"]
[15,"Аткарский муниципальный район","Даниловское","63604423"]
[16,"Аткарский муниципальный район","Ершовское","63604429"]
[17,"Аткарский муниципальный район","Кочетовское","63604448"]
[18,"Аткарский муниципальный район","Лопуховское","63604453"]
[19,"Аткарский муниципальный район","Озерное","63604472"]
[20,"Базарно-Карабулакский муниципальный район","Алексеевское","63606405"]
[21,"Базарно-Карабулакский муниципальный район","Базарно-Карабулакский муниципальный район","63606000"]
[22,"Базарно-Карабулакский муниципальный район","Базарно-Карабулакское","63606151"]
[23,"Базарно-Карабулакский муниципальный район","Большечечуйское","63606420"]
[24,"Базарно-Карабулакский муниципальный район","Липовское","63606445"]
[25,"Базарно-Карабулакский муниципальный район","Максимовское","63606450"]
[26,"Базарно-Карабулакский муниципальный район","Свободинское","63606156"]
[27,"Базарно-Карабулакский муниципальный район","Старобурасское","63606465"]
[28,"Базарно-Карабулакский муниципальный район","Старожуковское","63606470"]
[29,"Базарно-Карабулакский муниципальный район","Шняевское","63606490"]
[30,"Базарно-Карабулакский муниципальный район","Яковлевское","63606495"]
[31,"Балаковский муниципальный район","Балаковский муниципальный район","63607000"]
[32,"Балаковский муниципальный район","Быково-Отрогское","63607415"]
[33,"Балаковский муниципальный район","Город Балаково","63607101"]
[34,"Балаковский муниципальный район","Натальинское","63607460"]
[35,"Балашовский муниципальный район","Балашовский муниципальный район","63608000"]
[36,"Балашовский муниципальный район","Балашовское","63608101"]
[37,"Балашовский муниципальный район","Барковское","63608408"]
[38,"Балашовский муниципальный район","Большемеликское","63608412"]
[39,"Балашовский муниципальный район","Лесновское","63608432"]
[40,"Балашовский муниципальный район","Малосеменовское","63608440"]
[41,"Балашовский муниципальный район","Новопокровское","63608444"]
[42,"Балашовский муниципальный район","Октябрьское","63608448"]
[43,"Балашовский муниципальный район","Первомайское","63608456"]
[44,"Балашовский муниципальный район","Пинеровское","63608154"]
[45,"Балашовский муниципальный район","Репинское","63608460"]
[46,"Балашовский муниципальный район","Родничковское","63608462"]
[47,"Балашовский муниципальный район","Соцземледельское","63608466"]
[48,"Балашовский муниципальный район","Старохоперское","63608470"]
[49,"Балашовский муниципальный район","Терновское","63608478"]
[50,"Балашовский муниципальный район","Тростянское","63608482"]
[51,"Балашовский муниципальный район","Хоперское","63608486"]
[52,"Балтайский муниципальный район","Балтайский муниципальный район","63609000"]
[53,"Балтайский муниципальный район","Балтайское","63609410"]
[54,"Балтайский муниципальный район","Барнуковское","63609420"]
[55,"Балтайский муниципальный район","Большеозерское","63609430"]
[56,"Балтайский муниципальный район","Царевщинское","63609490"]
[57,"Вольский муниципальный район","Барановское","63611405"]
[58,"Вольский муниципальный район","Белогорновское","63611410"]
[59,"Вольский муниципальный район","Верхнечернавское","63611420"]
[60,"Вольский муниципальный район","Вольский муниципальный район","63611000"]
[61,"Вольский муниципальный район","Город Вольск","63611101"]
[62,"Вольский муниципальный район","Колоярское","63611435"]
[63,"Вольский муниципальный район","Кряжимское","63611415"]
[64,"Вольский муниципальный район","Куриловское","63611445"]
[65,"Вольский муниципальный район","Междуреченское","63611470"]
[66,"Вольский муниципальный район","Нижнечернавское","63611450"]
[67,"Вольский муниципальный район","Покровское","63611460"]
[68,"Вольский муниципальный район","Сенное","63611154"]
[69,"Вольский муниципальный район","Талалихинское","63611474"]
[70,"Вольский муниципальный район","Терсинское","63611475"]
[71,"Вольский муниципальный район","Черкасское","63611478"]
[72,"Вольский муниципальный район","Широкобуеракское","63611480"]
[73,"Воскресенский муниципальный район","Воскресенский муниципальный район","63612000"]
[74,"Воскресенский муниципальный район","Воскресенское","63612408"]
[75,"Воскресенский муниципальный район","Елшанское","63612412"]
[76,"Воскресенский муниципальный район","Синодское","63612435"]
[77,"Город Саратов","Город Саратов","63701000"]
[78,"Дергачевский муниципальный район","Верхазовское","63613415"]
[79,"Дергачевский муниципальный район","Восточное","63613420"]
[80,"Дергачевский муниципальный район","Демьясское","63613425"]
[81,"Дергачевский муниципальный район","Дергачевский муниципальный район","63613000"]
[82,"Дергачевский муниципальный район","Дергачевское","63613151"]
[83,"Дергачевский муниципальный район","Зерновское","63613430"]
[84,"Дергачевский муниципальный район","Камышевское","63613435"]
[85,"Дергачевский муниципальный район","Октябрьское","63613440"]
[86,"Дергачевский муниципальный район","Орошаемое","63613460"]
[87,"Дергачевский муниципальный район","Сафаровское","63613473"]
[88,"Дергачевский муниципальный район","Советское","63613475"]
[89,"Духовницкий муниципальный район","Березово-Лукское","63614405"]
[90,"Духовницкий муниципальный район","Брыковское","63614415"]
[91,"Духовницкий муниципальный район","Горяиновское","63614420"]
[92,"Духовницкий муниципальный район","Дмитриевское","63614425"]
[93,"Духовницкий муниципальный район","Духовницкий муниципальный район","63614000"]
[94,"Духовницкий муниципальный район","Духовницкое","63614151"]
[95,"Духовницкий муниципальный район","Липовское","63614435"]
[96,"Духовницкий муниципальный район","Новозахаркинское","63614442"]
[97,"Екатериновский муниципальный район","Альшанское","63616404"]
[98,"Екатериновский муниципальный район","Андреевское","63616408"]
[99,"Екатериновский муниципальный район","Бакурское","63616412"]
[100,"Екатериновский муниципальный район","Галаховское","63616428"]
[101,"Екатериновский муниципальный район","Екатериновский муниципальный район","63616000"]
[102,"Екатериновский муниципальный район","Екатериновское","63616151"]
[103,"Екатериновский муниципальный район","Индустриальное","63616436"]
[104,"Екатериновский муниципальный район","Кипецкое","63616440"]
[105,"Екатериновский муниципальный район","Коленовское","63616444"]
[106,"Екатериновский муниципальный район","Крутоярское","63616452"]
[107,"Екатериновский муниципальный район","Новоселовское","63616460"]
[108,"Екатериновский муниципальный район","Сластухинское","63616464"]
[109,"Ершовский муниципальный район","Антоновское","63617404"]
[110,"Ершовский муниципальный район","Город Ершов","63617101"]
[111,"Ершовский муниципальный район","Декабристское","63617416"]
[112,"Ершовский муниципальный район","Ершовский муниципальный район","63617000"]
[113,"Ершовский муниципальный район","Марьевское","63617440"]
[114,"Ершовский муниципальный район","Миусское","63617444"]
[115,"Ершовский муниципальный район","Новокраснянское","63617452"]
[116,"Ершовский муниципальный район","Новорепинское","63617456"]
[117,"Ершовский муниципальный район","Новосельское","63617457"]
[118,"Ершовский муниципальный район","Перекопновское","63617467"]
[119,"ЗАТО Светлый","ЗАТО Светлый","63775000"]
[120,"Ивантеевский муниципальный район","Бартеневское","63619410"]
[121,"Ивантеевский муниципальный район","Знаменское","63619415"]
[122,"Ивантеевский муниципальный район","Ивановское","63619420"]
[123,"Ивантеевский муниципальный район","Ивантеевский муниципальный район","63619000"]
[124,"Ивантеевский муниципальный район","Ивантеевское","63619422"]
[125,"Ивантеевский муниципальный район","Канаевское","63619430"]
[126,"Ивантеевский муниципальный район","Николаевское","63619440"]
[127,"Ивантеевский муниципальный район","Раевское","63619445"]
[128,"Ивантеевский муниципальный район","Чернавское","63619450"]
[129,"Ивантеевский муниципальный район","Яблоново-Гайское","63619455"]
[130,"Калининский муниципальный район","Ахтубинское","63621408"]
[131,"Калининский муниципальный район","Город Калининск","63621101"]
[132,"Калининский муниципальный район","Казачкинское","63621420"]
[133,"Калининский муниципальный район","Калининский муниципальный район","63621000"]
[134,"Калининский муниципальный район","Колокольцовское","63621424"]
[135,"Калининский муниципальный район","Малоекатериновское","63621428"]
[136,"Калининский муниципальный район","Озерское","63621443"]
[137,"Калининский муниципальный район","Свердловское","63621451"]
[138,"Калининский муниципальный район","Сергиевское","63621455"]
[139,"Калининский муниципальный район","Симоновское","63621459"]
[140,"Калининский муниципальный район","Таловское","63621472"]
[141,"Калининский муниципальный район","Широкоуступское","63621479"]
[142,"Красноармейский муниципальный район","Высоковское","63622405"]
[143,"Красноармейский муниципальный район","Гвардейское","63622410"]
[144,"Красноармейский муниципальный район","Город Красноармейск","63622101"]
[145,"Красноармейский муниципальный район","Золотовское","63622420"]
[146,"Красноармейский муниципальный район","Каменское","63622154"]
[147,"Красноармейский муниципальный район","Карамышское","63622425"]
[148,"Красноармейский муниципальный район","Красноармейский муниципальный район","63622000"]
[149,"Красноармейский муниципальный район","Луганское","63622435"]
[150,"Красноармейский муниципальный район","Нижнебанновское","63622455"]
[151,"Красноармейский муниципальный район","Рогаткинское","63622465"]
[152,"Красноармейский муниципальный район","Россошанское","63622470"]
[153,"Красноармейский муниципальный район","Сплавнухинское","63622486"]
[154,"Краснокутский муниципальный район","Город Красный Кут","63623101"]
[155,"Краснокутский муниципальный район","Дьяковское","63623410"]
[156,"Краснокутский муниципальный район","Ждановское","63623420"]
[157,"Краснокутский муниципальный район","Журавлевское","63623425"]
[158,"Краснокутский муниципальный район","Интернациональное","63623440"]
[159,"Краснокутский муниципальный район","Комсомольское","63623435"]
[160,"Краснокутский муниципальный район","Краснокутский муниципальный район","63623000"]
[161,"Краснокутский муниципальный район","Лавровское","63623441"]
[162,"Краснокутский муниципальный район","Лебедевское","63623443"]
[163,"Краснокутский муниципальный район","Логиновское","63623445"]
[164,"Краснокутский муниципальный район","Первомайское","63623450"]
[165,"Краснокутский муниципальный район","Усатовское","63623457"]
[166,"Краснокутский муниципальный район","Чкаловское","63623455"]
[167,"Краснопартизанский муниципальный район","Горновское","63624151"]
[168,"Краснопартизанский муниципальный район","Краснопартизанский муниципальный район","63624000"]
[169,"Краснопартизанский муниципальный район","Рукопольское","63624440"]
[170,"Лысогорский муниципальный район","Большедмитриевское","63625405"]
[171,"Лысогорский муниципальный район","Большекопенское","63625410"]
[172,"Лысогорский муниципальный район","Большерельненское","63625415"]
[173,"Лысогорский муниципальный район","Бутырское","63625420"]
[174,"Лысогорский муниципальный район","Гремячинское","63625428"]
[175,"Лысогорский муниципальный район","Лысогорский муниципальный район","63625000"]
[176,"Лысогорский муниципальный район","Лысогорское","63625151"]
[177,"Лысогорский муниципальный район","Новокрасавское","63625440"]
[178,"Лысогорский муниципальный район","Октябрьское","63625460"]
[179,"Лысогорский муниципальный район","Раздольновское","63625445"]
[180,"Лысогорский муниципальный район","Ширококарамышское","63625455"]
[181,"Марксовский муниципальный район","Город Маркс","63626101"]
[182,"Марксовский муниципальный район","Зоркинское","63626430"]
[183,"Марксовский муниципальный район","Кировское","63626440"]
[184,"Марксовский муниципальный район","Липовское","63626445"]
[185,"Марксовский муниципальный район","Марксовский муниципальный район","63626000"]
[186,"Марксовский муниципальный район","Осиновское","63626453"]
[187,"Марксовский муниципальный район","Подлесновское","63626458"]
[188,"Марксовский муниципальный район","Приволжское","63626465"]
[189,"Новобурасский муниципальный район","Белоярское","63629410"]
[190,"Новобурасский муниципальный район","Новобурасский муниципальный район","63629000"]
[191,"Новобурасский муниципальный район","Новобурасское","63629151"]
[192,"Новобурасский муниципальный район","Тепловское","63629465"]
[193,"Новоузенский муниципальный район","Алгайское","63630405"]
[194,"Новоузенский муниципальный район","Бессоновское","63630408"]
[195,"Новоузенский муниципальный район","Город Новоузенск","63630101"]
[196,"Новоузенский муниципальный район","Горькореченское","63630415"]
[197,"Новоузенский муниципальный район","Дмитриевское","63630420"]
[198,"Новоузенский муниципальный район","Дюрское","63630422"]
[199,"Новоузенский муниципальный район","Куриловское","63630430"]
[200,"Новоузенский муниципальный район","Новоузенский муниципальный район","63630000"]
[201,"Новоузенский муниципальный район","Олоновское","63630445"]
[202,"Новоузенский муниципальный район","Петропавловское","63630450"]
[203,"Новоузенский муниципальный район","Пограниченское","63630455"]
[204,"Новоузенский муниципальный район","Радищевское","63630460"]
[205,"Озинский муниципальный район","Балашинское","63632405"]
[206,"Озинский муниципальный район","Заволжское","63632410"]
[207,"Озинский муниципальный район","Ленинское","63632420"]
[208,"Озинский муниципальный район","Липовское","63632425"]
[209,"Озинский муниципальный район","Озерское","63632440"]
[210,"Озинский муниципальный район","Озинский муниципальный район","63632000"]
[211,"Озинский муниципальный район","Озинское","63632151"]
[212,"Озинский муниципальный район","Первоцелинное","63632415"]
[213,"Озинский муниципальный район","Пигаревское","63632445"]
[214,"Озинский муниципальный район","Сланцерудниковское","63632449"]
[215,"Озинский муниципальный район","Урожайное","63632455"]
[216,"Озинский муниципальный район","Чалыклинское","63632460"]
[217,"Перелюбский муниципальный район","Грачево-Кустовское","63634405"]
[218,"Перелюбский муниципальный район","Иванихинское","63634445"]
[219,"Перелюбский муниципальный район","Кучумбетовское","63634415"]
[220,"Перелюбский муниципальный район","Молодежное","63634420"]
[221,"Перелюбский муниципальный район","Натальиноярское","63634410"]
[222,"Перелюбский муниципальный район","Нижнепокровское","63634425"]
[223,"Перелюбский муниципальный район","Октябрьское","63634430"]
[224,"Перелюбский муниципальный район","Первомайское","63634435"]
[225,"Перелюбский муниципальный район","Перелюбский муниципальный район","63634000"]
[226,"Перелюбский муниципальный район","Перелюбское","63634440"]
[227,"Перелюбский муниципальный район","Смородинское","63634447"]
[228,"Перелюбский муниципальный район","Тепловское","63634450"]
[229,"Перелюбский муниципальный район","Целинное","63634460"]
[230,"Петровский муниципальный район","Березовское","63635410"]
[231,"Петровский муниципальный район","Город Петровск","63635101"]
[232,"Петровский муниципальный район","Грачевское","63635420"]
[233,"Петровский муниципальный район","Новозахаркинское","63635435"]
[234,"Петровский муниципальный район","Петровский муниципальный район","63635000"]
[235,"Петровский муниципальный район","Пригородное","63635460"]
[236,"Петровский муниципальный район","Синеньское","63635465"]
[237,"Питерский муниципальный район","Агафоновское","63636405"]
[238,"Питерский муниципальный район","Алексашкинское","63636410"]
[239,"Питерский муниципальный район","Малоузенское","63636415"]
[240,"Питерский муниципальный район","Мироновское","63636420"]
[241,"Питерский муниципальный район","Нивское","63636430"]
[242,"Питерский муниципальный район","Новотульское","63636425"]
[243,"Питерский муниципальный район","Орошаемое","63636435"]
[244,"Питерский муниципальный район","Питерский муниципальный район","63636000"]
[245,"Питерский муниципальный район","Питерское","63636446"]
[246,"Пугачевский муниципальный район","Город Пугачев","63637101"]
[247,"Пугачевский муниципальный район","Давыдовское","63637415"]
[248,"Пугачевский муниципальный район","Заволжское","63637423"]
[249,"Пугачевский муниципальный район","Клинцовское","63637440"]
[250,"Пугачевский муниципальный район","Краснореченское","63637445"]
[251,"Пугачевский муниципальный район","Надеждинское","63637450"]
[252,"Пугачевский муниципальный район","Преображенское","63637460"]
[253,"Пугачевский муниципальный район","Пугачевский муниципальный район","63637000"]
[254,"Пугачевский муниципальный район","Рахмановское","63637470"]
[255,"Пугачевский муниципальный район","Старопорубежское","63637485"]
[256,"Ровенский муниципальный район","Кочетновское","63639410"]
[257,"Ровенский муниципальный район","Кривоярское","63639420"]
[258,"Ровенский муниципальный район","Луговское","63639430"]
[259,"Ровенский муниципальный район","Первомайское","63639440"]
[260,"Ровенский муниципальный район","Приволжское","63639450"]
[261,"Ровенский муниципальный район","Привольненское","63639460"]
[262,"Ровенский муниципальный район","Ровенский муниципальный район","63639000"]
[263,"Ровенский муниципальный район","Ровенское","63639151"]
[264,"Ровенский муниципальный район","Тарлыковское","63639475"]
[265,"Романовский муниципальный район","Бобылевское","63640440"]
[266,"Романовский муниципальный район","Большекарайское","63640410"]
[267,"Романовский муниципальный район","Мордовокарайское","63640435"]
[268,"Романовский муниципальный район","Подгорненское","63640445"]
[269,"Романовский муниципальный район","Романовский муниципальный район","63640000"]
[270,"Романовский муниципальный район","Романовское","63640151"]
[271,"Романовский муниципальный район","Усть-Щербединское","63640450"]
[272,"Ртищевский муниципальный район","Город Ртищево","63641101"]
[273,"Ртищевский муниципальный район","Краснозвездинское","63641428"]
[274,"Ртищевский муниципальный район","Макаровское","63641444"]
[275,"Ртищевский муниципальный район","Октябрьское","63641452"]
[276,"Ртищевский муниципальный район","Ртищевский муниципальный район","63641000"]
[277,"Ртищевский муниципальный район","Салтыковское","63641468"]
[278,"Ртищевский муниципальный район","Урусовское","63641484"]
[279,"Ртищевский муниципальный район","Шило-Голицынское","63641488"]
[280,"Самойловский муниципальный район","Благовещенское","63642405"]
[281,"Самойловский муниципальный район","Еловатское","63642410"]
[282,"Самойловский муниципальный район","Красавское","63642420"]
[283,"Самойловский муниципальный район","Краснознаменское","63642425"]
[284,"Самойловский муниципальный район","Песчанское","63642445"]
[285,"Самойловский муниципальный район","Самойловский муниципальный район","63642000"]
[286,"Самойловский муниципальный район","Самойловское","63642151"]
[287,"Самойловский муниципальный район","Святославское","63642455"]
[288,"Самойловский муниципальный район","Хрущевское","63642460"]
[289,"Саратовский муниципальный район","Александровское","63643404"]
[290,"Саратовский муниципальный район","Вольновское","63643428"]
[291,"Саратовский муниципальный район","Дубковское","63643440"]
[292,"Саратовский муниципальный район","Краснооктябрьское","63643154"]
[293,"Саратовский муниципальный район","Михайловское","63643460"]
[294,"Саратовский муниципальный район","Расковское","63643470"]
[295,"Саратовский муниципальный район","Саратовский муниципальный район","63643000"]
[296,"Саратовский муниципальный район","Соколовское","63643158"]
[297,"Саратовский муниципальный район","Усть-Курдюмское","63643496"]
[298,"Советский муниципальный район","Золотостепское","63644408"]
[299,"Советский муниципальный район","Любимовское","63644422"]
[300,"Советский муниципальный район","Мечетненское","63644425"]
[301,"Советский муниципальный район","Пушкинское","63644155"]
[302,"Советский муниципальный район","Розовское","63644433"]
[303,"Советский муниципальный район","Советский муниципальный район","63644000"]
[304,"Советский муниципальный район","Советское","63644158"]
[305,"Советский муниципальный район","Степновское","63644151"]
[306,"Татищевский муниципальный район","Вязовское","63646405"]
[307,"Татищевский муниципальный район","Идолгское","63646425"]
[308,"Татищевский муниципальный район","Октябрьское","63646440"]
[309,"Татищевский муниципальный район","Садовское","63646446"]
[310,"Татищевский муниципальный район","Сторожевское","63646457"]
[311,"Татищевский муниципальный район","Татищевский муниципальный район","63646000"]
[312,"Татищевский муниципальный район","Татищевское","63646151"]
[313,"Татищевский муниципальный район","Ягодно-Полянское","63646470"]
[314,"Турковский муниципальный район","Перевесинское","63647435"]
[315,"Турковский муниципальный район","Рязанское","63647445"]
[316,"Турковский муниципальный район","Студеновское","63647450"]
[317,"Турковский муниципальный район","Турковский муниципальный район","63647000"]
[318,"Турковский муниципальный район","Турковское","63647151"]
[319,"Фёдоровский муниципальный район","Борисоглебовское","63648405"]
[320,"Фёдоровский муниципальный район","Долинское","63648415"]
[321,"Фёдоровский муниципальный район","Ерусланское","63648420"]
[322,"Фёдоровский муниципальный район","Калужское","63648430"]
[323,"Фёдоровский муниципальный район","Мокроусское","63648151"]
[324,"Фёдоровский муниципальный район","Морцевское","63648435"]
[325,"Фёдоровский муниципальный район","Мунинское","63648437"]
[326,"Фёдоровский муниципальный район","Никольское","63648440"]
[327,"Фёдоровский муниципальный район","Первомайское","63648445"]
[328,"Фёдоровский муниципальный район","Семеновское","63648460"]
[329,"Фёдоровский муниципальный район","Фёдоровский муниципальный район","63648000"]
[330,"Фёдоровский муниципальный район","Федоровское","63648475"]
[331,"Хвалынский муниципальный район","Алексеевское","63649406"]
[332,"Хвалынский муниципальный район","Благодатинское","63649415"]
[333,"Хвалынский муниципальный район","Возрожденческое","63649417"]
[334,"Хвалынский муниципальный район","Город Хвалынск","63649101"]
[335,"Хвалынский муниципальный район","Елшанское","63649430"]
[336,"Хвалынский муниципальный район","Северное","63649440"]
[337,"Хвалынский муниципальный район","Сосново-Мазинское","63649450"]
[338,"Хвалынский муниципальный район","Хвалынский муниципальный район","63649000"]
[339,"Энгельсский муниципальный район","Безымянское","63650405"]
[340,"Энгельсский муниципальный район","Город Энгельс","63650101"]
[341,"Энгельсский муниципальный район","Красноярское","63650440"]
[342,"Энгельсский муниципальный район","Новопушкинское","63650480"]
[343,"Энгельсский муниципальный район","Терновское","63650460"]
[344,"Энгельсский муниципальный район","Энгельсский муниципальный район","63650000"]
[345,"город Шиханы","город Шиханы","63746000"]
[346,"поселок Михайловский","поселок Михайловский","63760000"]

{"sheet":"REESTR_MO_FILTER","index":42,"n_rows":0,"n_cols":0,"rows_kept":0,"cut":false,"hidden":true,"merged":[]}

{"sheet":"modfrmReestrMR","index":43,"n_rows":0,"n_cols":0,"rows_kept":0,"cut":false,"hidden":true,"merged":[]}

{"sheet":"modServiceModule","index":44,"n_rows":0,"n_cols":0,"rows_kept":0,"cut":false,"hidden":true,"merged":[]}

{"sheet":"modfrmCheckUpdates","index":45,"n_rows":0,"n_cols":0,"rows_kept":0,"cut":false,"hidden":true,"merged":[]}

{"sheet":"REESTR_DS","index":46,"n_rows":3,"n_cols":2,"rows_kept":3,"cut":false,"hidden":true,"merged":[]}
[]
[]
[null,"Балаковский муниципальный район, Натальинское (63607460);"]

{"sheet":"REESTR_CHS","index":47,"n_rows":0,"n_cols":0,"rows_kept":0,"cut":false,"hidden":true,"merged":[]}

{"sheet":"REESTR_LINK","index":48,"n_rows":3,"n_cols":3,"rows_kept":3,"cut":false,"hidden":true,"merged":[]}
["ID","LINK_NAME","REGION"]
[4189678,"https://portal.eias.ru/Portal/DownloadPage.aspx?type=12&guid=????????-????-????-????-????????????","ALL"]
[4190415,"https://eias.fstrf.ru/disclo/get_file?p_guid=????????-????-????-????-????????????","ALL"]